[Event "Titled Tuesday Blitz June 6 Late 2023"]
[White "Lima, Kleyton Alcantara"]
[Black "Abrahamyan, Tatev"]
[WhiteFideId "22718397"]
[BlackFideId "13301918"]
[WhiteElo "2009"]
[BlackElo "2342"]
[Result "0-1"]
[Round "5"]
[TimeControl "180+2"]
[Date "2023.06.07"]
[WhiteClock "0:00:58"]
[BlackClock "0:00:54"]
[Board "73"]

1. e4 {[%clk 0:03:00]}  e6 {[%clk 0:02:59]} 2. d4 {[%clk 0:03:00]}  d5 {[%clk 0:02:57]} 3. Nc3 {[%clk 0:03:00]}  Nf6 {[%clk 0:02:55]} 4. e5 {[%clk 0:03:01]}  Nfd7 {[%clk 0:02:55]} 5. f4 {[%clk 0:03:00]}  c5 {[%clk 0:02:56]} 6. Nf3 {[%clk 0:03:01]}  Nc6 {[%clk 0:02:56]} 7. Be3 {[%clk 0:03:01]}  cxd4 {[%clk 0:02:56]} 8. Nxd4 {[%clk 0:03:01]}  Qb6 {[%clk 0:02:56]} 9. Qd2 {[%clk 0:03:01]}  Qxb2 {[%clk 0:02:56]} 10. Rb1 {[%clk 0:03:00]}  Qa3 {[%clk 0:02:57]} 11. Bb5 {[%clk 0:02:49]}  Nxd4 {[%clk 0:02:55]} 12. Bxd4 {[%clk 0:02:47]}  a6 {[%clk 0:02:55]} 13. Bxd7+ {[%clk 0:02:31]}  Bxd7 {[%clk 0:02:56]} 14. Rb3 {[%clk 0:02:31]}  Qe7 {[%clk 0:02:47]} 15. Rxb7 {[%clk 0:02:31]}  Qd8 {[%clk 0:02:45]} 16. O-O {[%clk 0:02:26]}  Qc8 {[%clk 0:02:43]} 17. Rfb1 {[%clk 0:02:19]}  Bc5 {[%clk 0:02:33]} 18. Qf2 {[%clk 0:02:08]}  Bxd4 {[%clk 0:02:26]} 19. Qxd4 {[%clk 0:02:09]}  Bc6 {[%clk 0:01:59]} 20. R7b3 {[%clk 0:02:03]}  O-O {[%clk 0:01:57]} 21. f5 {[%clk 0:02:02]}  exf5 {[%clk 0:01:53]} 22. Nxd5 {[%clk 0:02:01]}  Bxd5 {[%clk 0:01:51]} 23. Qxd5 {[%clk 0:02:01]}  Rd8 {[%clk 0:01:28]} 24. Qf3 {[%clk 0:01:40]}  Qxc2 {[%clk 0:01:24]} 25. Qxa8 {[%clk 0:01:28]}  Qc5+ {[%clk 0:01:08]} 26. Kf1 {[%clk 0:01:12]}  Rxa8 {[%clk 0:01:04]} 27. Rb8+ {[%clk 0:01:12]}  Rxb8 {[%clk 0:01:04]} 28. Rxb8+ {[%clk 0:01:10]}  Qf8 {[%clk 0:01:05]} 29. Rxf8+ {[%clk 0:01:08]}  Kxf8 {[%clk 0:01:06]} 30. Ke2 {[%clk 0:01:09]}  Ke7 {[%clk 0:01:06]} 31. Ke3 {[%clk 0:01:09]}  Ke6 {[%clk 0:01:06]} 32. Kd4 {[%clk 0:01:07]}  g5 {[%clk 0:01:05]} 33. g3 {[%clk 0:01:06]}  f6 {[%clk 0:01:01]} 34. exf6 {[%clk 0:01:05]}  Kxf6 {[%clk 0:01:01]} 35. a4 {[%clk 0:01:03]}  a5 {[%clk 0:01:01]} 36. Ke3 {[%clk 0:00:55]}  Ke5 {[%clk 0:00:59]} 37. h4 {[%clk 0:00:55]}  gxh4 {[%clk 0:00:52]} 38. gxh4 {[%clk 0:00:55]}  h5 {[%clk 0:00:53]} 39. Kf3 {[%clk 0:00:55]}  f4 {[%clk 0:00:53]} 40. Kf2 {[%clk 0:00:55]}  Ke4 {[%clk 0:00:53]} 41. Ke2 {[%clk 0:00:55]}  f3+ {[%clk 0:00:53]} 42. Kf2 {[%clk 0:00:56]}  Kf4 {[%clk 0:00:53]} 43. Kf1 {[%clk 0:00:57]}  Kg3 {[%clk 0:00:53]} 44. Kg1 {[%clk 0:00:57]}  Kxh4 {[%clk 0:00:53]} 45. Kf2 {[%clk 0:00:57]}  Kg4 {[%clk 0:00:54]} 46. Kf1 {[%clk 0:00:57]}  Kg3 {[%clk 0:00:54]} 47. Kg1 {[%clk 0:00:58]}  f2+ {[%clk 0:00:54]} 48. Kf1 {[%clk 0:00:58]}  h4 {[%clk 0:00:54]} 0-1


[Site "https://www.chess.com"]

[Event "Titled Tuesday Blitz June 6 Late 2023"]
[White "QuiesPrecatio"]
[Black "Adewumi, Tanitoluwa"]
[BlackFideId "30966396"]
[WhiteElo "2447"]
[BlackElo "2607"]
[Result "0-1"]
[Round "5"]
[TimeControl "180+2"]
[Date "2023.06.07"]
[WhiteClock "0:00:05"]
[BlackClock "0:00:03"]
[Board "75"]

1. d4 {[%clk 0:02:56]}  Nf6 {[%clk 0:02:57]} 2. c4 {[%clk 0:02:55]}  e6 {[%clk 0:02:57]} 3. g3 {[%clk 0:02:52]}  d5 {[%clk 0:02:56]} 4. Bg2 {[%clk 0:02:53]}  Bb4+ {[%clk 0:02:39]} 5. Bd2 {[%clk 0:02:48]}  Bd6 {[%clk 0:02:38]} 6. Nf3 {[%clk 0:02:36]}  O-O {[%clk 0:02:34]} 7. O-O {[%clk 0:02:36]}  Nbd7 {[%clk 0:02:28]} 8. Qc2 {[%clk 0:02:29]}  Ne4 {[%clk 0:01:56]} 9. Nc3 {[%clk 0:02:16]}  Nxc3 {[%clk 0:01:51]} 10. Bxc3 {[%clk 0:02:10]}  f5 {[%clk 0:01:48]} 11. Ne5 {[%clk 0:01:31]}  Nf6 {[%clk 0:01:45]} 12. f3 {[%clk 0:01:18]}  c5 {[%clk 0:01:12]} 13. Rad1 {[%clk 0:01:06]}  Qc7 {[%clk 0:01:02]} 14. f4 {[%clk 0:00:44]}  b5 {[%clk 0:00:45]} 15. cxb5 {[%clk 0:00:15]}  cxd4 {[%clk 0:00:42]} 16. Rxd4 {[%clk 0:00:15]}  Bc5 {[%clk 0:00:40]} 17. Qd2 {[%clk 0:00:16]}  a6 {[%clk 0:00:29]} 18. bxa6 {[%clk 0:00:10]}  Bxa6 {[%clk 0:00:30]} 19. Rc1 {[%clk 0:00:10]}  Rfc8 {[%clk 0:00:20]} 20. e3 {[%clk 0:00:10]}  Bxd4 {[%clk 0:00:13]} 21. Qxd4 {[%clk 0:00:10]}  Rab8 {[%clk 0:00:11]} 22. Rd1 {[%clk 0:00:07]}  Qb7 {[%clk 0:00:09]} 23. h3 {[%clk 0:00:05]}  Qb5 {[%clk 0:00:08]} 24. g4 {[%clk 0:00:04]}  Qc5 {[%clk 0:00:08]} 25. g5 {[%clk 0:00:03]}  Qxd4 {[%clk 0:00:08]} 26. Rxd4 {[%clk 0:00:03]}  Ne4 {[%clk 0:00:08]} 27. Bxe4 {[%clk 0:00:02]}  fxe4 {[%clk 0:00:09]} 28. Nd7 {[%clk 0:00:02]}  Rb7 {[%clk 0:00:07]} 29. Ne5 {[%clk 0:00:03]}  h6 {[%clk 0:00:06]} 30. gxh6 {[%clk 0:00:03]}  gxh6 {[%clk 0:00:07]} 31. Ng4 {[%clk 0:00:04]}  h5 {[%clk 0:00:07]} 32. Nf6+ {[%clk 0:00:04]}  Kf7 {[%clk 0:00:07]} 33. Nxh5 {[%clk 0:00:05]}  Rg8+ {[%clk 0:00:06]} 34. Kh2 {[%clk 0:00:04]}  Be2 {[%clk 0:00:06]} 35. Ng3 {[%clk 0:00:04]}  Bf3 {[%clk 0:00:06]} 36. Ra4 {[%clk 0:00:04]}  Rbb8 {[%clk 0:00:03]} 37. Ra7+ {[%clk 0:00:04]}  Kg6 {[%clk 0:00:03]} 38. h4 {[%clk 0:00:05]}  Kh6 {[%clk 0:00:03]} 39. Rf7 {[%clk 0:00:04]}  Rg6 {[%clk 0:00:03]} 40. h5 {[%clk 0:00:03]}  Bxh5 {[%clk 0:00:02]} 41. Be5 {[%clk 0:00:02]}  Rbg8 {[%clk 0:00:01]} 42. f5 {[%clk 0:00:02]}  exf5 {[%clk 0:00:01]} 43. Bf4+ {[%clk 0:00:03]}  Rg5 {[%clk 0:00:01]} 44. Nxf5+ {[%clk 0:00:03]}  Kg6 {[%clk 0:00:02]} 45. Bxg5 {[%clk 0:00:02]}  Kxf7 {[%clk 0:00:02]} 46. Bf4 {[%clk 0:00:02]}  Ke6 {[%clk 0:00:02]} 47. Ng3 {[%clk 0:00:03]}  Bf3 {[%clk 0:00:02]} 48. Kg1 {[%clk 0:00:03]}  Rh8 {[%clk 0:00:02]} 49. Kf2 {[%clk 0:00:04]}  Rh2+ {[%clk 0:00:03]} 50. Ke1 {[%clk 0:00:05]}  Rxb2 {[%clk 0:00:03]} 0-1


[Site "https://www.chess.com"]

[Event "Titled Tuesday Blitz June 6 Late 2023"]
[White "Kaplan, Avi Harrison"]
[Black "Makaraci, Tunahan"]
[WhiteFideId "30934559"]
[BlackFideId "6356559"]
[WhiteElo "1983"]
[BlackElo "2160"]
[Result "0-1"]
[Round "5"]
[TimeControl "180+2"]
[Date "2023.06.07"]
[WhiteClock "0:00:02"]
[BlackClock "0:00:39"]
[Board "78"]

1. b3 {[%clk 0:02:58]}  e5 {[%clk 0:02:56]} 2. Bb2 {[%clk 0:02:59]}  d6 {[%clk 0:02:57]} 3. e3 {[%clk 0:02:55]}  g6 {[%clk 0:02:53]} 4. f4 {[%clk 0:02:54]}  Bg7 {[%clk 0:02:53]} 5. Nf3 {[%clk 0:02:52]}  Bg4 {[%clk 0:02:52]} 6. fxe5 {[%clk 0:02:50]}  dxe5 {[%clk 0:02:51]} 7. Bc4 {[%clk 0:02:46]}  Nh6 {[%clk 0:02:41]} 8. O-O {[%clk 0:02:39]}  O-O {[%clk 0:02:40]} 9. h3 {[%clk 0:02:35]}  Bxf3 {[%clk 0:02:34]} 10. Qxf3 {[%clk 0:02:35]}  e4 {[%clk 0:02:28]} 11. Bxg7 {[%clk 0:02:21]}  exf3 {[%clk 0:02:24]} 12. Bxh6 {[%clk 0:02:14]}  Nd7 {[%clk 0:02:14]} 13. Bxf8 {[%clk 0:02:04]}  Qxf8 {[%clk 0:02:12]} 14. d4 {[%clk 0:01:55]}  Nb6 {[%clk 0:02:00]} 15. Rxf3 {[%clk 0:01:53]}  Nxc4 {[%clk 0:02:00]} 16. bxc4 {[%clk 0:01:54]}  Qb4 {[%clk 0:02:00]} 17. Rf1 {[%clk 0:01:52]}  Qb2 {[%clk 0:01:45]} 18. Nd2 {[%clk 0:01:50]}  Re8 {[%clk 0:01:42]} 19. Kf2 {[%clk 0:01:23]}  Qxc2 {[%clk 0:01:37]} 20. Rfd1 {[%clk 0:01:20]}  Qd3 {[%clk 0:01:35]} 21. Nf1 {[%clk 0:01:20]}  Qxc4 {[%clk 0:01:35]} 22. Rac1 {[%clk 0:01:19]}  Qxa2+ {[%clk 0:01:35]} 23. Rd2 {[%clk 0:01:18]}  Qa5 {[%clk 0:01:32]} 24. Rc5 {[%clk 0:01:14]}  Qb6 {[%clk 0:01:29]} 25. Ng3 {[%clk 0:00:55]}  Qf6+ {[%clk 0:01:26]} 26. Ke2 {[%clk 0:00:47]}  b6 {[%clk 0:01:23]} 27. Rc3 {[%clk 0:00:32]}  c5 {[%clk 0:01:22]} 28. Rcd3 {[%clk 0:00:23]}  c4 {[%clk 0:01:18]} 29. Rc3 {[%clk 0:00:23]}  b5 {[%clk 0:01:19]} 30. Nf1 {[%clk 0:00:21]}  Qc6 {[%clk 0:01:10]} 31. d5 {[%clk 0:00:20]}  Qc5 {[%clk 0:01:10]} 32. d6 {[%clk 0:00:20]}  b4 {[%clk 0:01:10]} 33. d7 {[%clk 0:00:21]}  Rd8 {[%clk 0:01:10]} 34. Rc1 {[%clk 0:00:20]}  c3 {[%clk 0:01:10]} 35. Rd4 {[%clk 0:00:19]}  Qb5+ {[%clk 0:01:09]} 36. Kf2 {[%clk 0:00:19]}  Rxd7 {[%clk 0:01:07]} 37. Rxd7 {[%clk 0:00:14]}  Qxd7 {[%clk 0:01:08]} 38. Kg1 {[%clk 0:00:14]}  Qd3 {[%clk 0:01:07]} 39. e4 {[%clk 0:00:14]}  b3 {[%clk 0:01:07]} 40. e5 {[%clk 0:00:10]}  b2 {[%clk 0:01:07]} 41. Re1 {[%clk 0:00:11]}  b1=Q {[%clk 0:01:06]} 42. Rxb1 {[%clk 0:00:11]}  Qxb1 {[%clk 0:01:07]} 43. e6 {[%clk 0:00:12]}  fxe6 {[%clk 0:01:07]} 44. Kf2 {[%clk 0:00:13]}  c2 {[%clk 0:01:07]} 45. Nd2 {[%clk 0:00:13]}  Qd1 {[%clk 0:01:07]} 46. Nb3 {[%clk 0:00:14]}  Qd3 {[%clk 0:01:06]} 47. Nc1 {[%clk 0:00:14]}  Qd2+ {[%clk 0:01:06]} 48. Ne2 {[%clk 0:00:14]}  Qc1 {[%clk 0:01:07]} 49. Nxc1 {[%clk 0:00:15]}  Kf7 {[%clk 0:01:00]} 50. Ke3 {[%clk 0:00:15]}  Kf6 {[%clk 0:01:00]} 51. Kd3 {[%clk 0:00:16]}  Ke5 {[%clk 0:01:00]} 52. Ne2 {[%clk 0:00:13]}  c1=Q {[%clk 0:01:00]} 53. Nxc1 {[%clk 0:00:13]}  Kf4 {[%clk 0:01:01]} 54. Ke2 {[%clk 0:00:14]}  Kg3 {[%clk 0:01:01]} 55. Kf1 {[%clk 0:00:14]}  a5 {[%clk 0:01:01]} 56. Kg1 {[%clk 0:00:11]}  a4 {[%clk 0:00:59]} 57. Ne2+ {[%clk 0:00:10]}  Kh4 {[%clk 0:00:59]} 58. Kf2 {[%clk 0:00:10]}  a3 {[%clk 0:00:59]} 59. Nc3 {[%clk 0:00:09]}  Kg5 {[%clk 0:00:59]} 60. Kg3 {[%clk 0:00:09]}  Kf5 {[%clk 0:00:59]} 61. Kf3 {[%clk 0:00:09]}  Ke5 {[%clk 0:00:59]} 62. Ke3 {[%clk 0:00:10]}  g5 {[%clk 0:00:55]} 63. g3 {[%clk 0:00:09]}  h5 {[%clk 0:00:55]} 64. Kd3 {[%clk 0:00:09]}  h4 {[%clk 0:00:52]} 65. g4 {[%clk 0:00:08]}  Kf4 {[%clk 0:00:51]} 66. Ke2 {[%clk 0:00:08]}  Kg3 {[%clk 0:00:51]} 67. Ke3 {[%clk 0:00:08]}  Kxh3 {[%clk 0:00:50]} 68. Kf3 {[%clk 0:00:08]}  e5 {[%clk 0:00:50]} 69. Ke4 {[%clk 0:00:01]}  Kxg4 {[%clk 0:00:48]} 70. Ke3 {[%clk 0:00:01]}  h3 {[%clk 0:00:48]} 71. Kf2 {[%clk 0:00:02]}  e4 {[%clk 0:00:41]} 72. Kg1 {[%clk 0:00:02]}  e3 {[%clk 0:00:41]} 73. Kh2 {[%clk 0:00:02]}  e2 {[%clk 0:00:39]} 74. Nxe2 {[%clk 0:00:02]}  a2 {[%clk 0:00:39]} 75. Ng3 {[%clk 0:00:02]}  a1=Q {[%clk 0:00:39]} 76. Nf1 {[%clk 0:00:03]}  Qb2+ {[%clk 0:00:38]} 77. Nd2 {[%clk 0:00:01]}  Qxd2+ {[%clk 0:00:38]} 78. Kh1 {[%clk 0:00:02]}  Qg2# {[%clk 0:00:39]} 0-1


[Site "https://www.chess.com"]

[Event "Titled Tuesday Blitz June 6 Late 2023"]
[White "Fiorito, Francisco"]
[Black "Balla, Tamas-Kristof"]
[WhiteFideId "180165"]
[BlackFideId "1208497"]
[WhiteElo "2319"]
[BlackElo "2334"]
[Result "1/2-1/2"]
[Round "5"]
[TimeControl "180+2"]
[Date "2023.06.07"]
[WhiteClock "0:00:06"]
[BlackClock "0:00:10"]
[Board "81"]

1. e4 {[%clk 0:03:00]}  c5 {[%clk 0:02:58]} 2. Nf3 {[%clk 0:02:58]}  Nc6 {[%clk 0:02:58]} 3. Bb5 {[%clk 0:02:57]}  Nf6 {[%clk 0:02:57]} 4. e5 {[%clk 0:02:38]}  Nd5 {[%clk 0:02:57]} 5. c3 {[%clk 0:02:37]}  g6 {[%clk 0:02:47]} 6. O-O {[%clk 0:02:36]}  Bg7 {[%clk 0:02:47]} 7. Re1 {[%clk 0:02:36]}  O-O {[%clk 0:02:43]} 8. d4 {[%clk 0:02:20]}  cxd4 {[%clk 0:02:42]} 9. cxd4 {[%clk 0:02:19]}  d6 {[%clk 0:02:40]} 10. a3 {[%clk 0:01:33]}  Bg4 {[%clk 0:02:30]} 11. Bxc6 {[%clk 0:01:21]}  bxc6 {[%clk 0:02:25]} 12. h3 {[%clk 0:01:21]}  Bxf3 {[%clk 0:02:18]} 13. Qxf3 {[%clk 0:01:20]}  dxe5 {[%clk 0:02:16]} 14. dxe5 {[%clk 0:01:21]}  Rb8 {[%clk 0:02:13]} 15. Nc3 {[%clk 0:01:17]}  Nxc3 {[%clk 0:02:12]} 16. Qxc3 {[%clk 0:01:18]}  Qd5 {[%clk 0:01:54]} 17. Bg5 {[%clk 0:00:56]}  Rb3 {[%clk 0:01:49]} 18. Qc2 {[%clk 0:00:55]}  Rfb8 {[%clk 0:01:44]} 19. Rad1 {[%clk 0:00:25]}  Qe6 {[%clk 0:01:40]} 20. Qd2 {[%clk 0:00:15]}  h6 {[%clk 0:01:35]} 21. Bxh6 {[%clk 0:00:13]}  Bxh6 {[%clk 0:01:32]} 22. Qxh6 {[%clk 0:00:13]}  Rxb2 {[%clk 0:01:33]} 23. Rd4 {[%clk 0:00:10]}  Qf5 {[%clk 0:01:27]} 24. Rf4 {[%clk 0:00:09]}  Qc2 {[%clk 0:01:18]} 25. e6 {[%clk 0:00:08]}  f6 {[%clk 0:01:07]} 26. Re3 {[%clk 0:00:08]}  g5 {[%clk 0:01:00]} 27. Rff3 {[%clk 0:00:07]}  Qh7 {[%clk 0:00:48]} 28. Qxh7+ {[%clk 0:00:06]}  Kxh7 {[%clk 0:00:49]} 29. Rc3 {[%clk 0:00:06]}  R8b6 {[%clk 0:00:47]} 30. Rfd3 {[%clk 0:00:07]}  c5 {[%clk 0:00:38]} 31. Rxc5 {[%clk 0:00:05]}  Rxe6 {[%clk 0:00:38]} 32. Re3 {[%clk 0:00:03]}  Rxe3 {[%clk 0:00:34]} 33. fxe3 {[%clk 0:00:04]}  Rb3 {[%clk 0:00:35]} 34. Ra5 {[%clk 0:00:04]}  Rxe3 {[%clk 0:00:32]} 35. Rxa7 {[%clk 0:00:05]}  Kg6 {[%clk 0:00:30]} 36. a4 {[%clk 0:00:05]}  Ra3 {[%clk 0:00:29]} 37. a5 {[%clk 0:00:05]}  e5 {[%clk 0:00:25]} 38. a6 {[%clk 0:00:05]}  e4 {[%clk 0:00:25]} 39. Ra8 {[%clk 0:00:05]}  Kg7 {[%clk 0:00:24]} 40. Kh2 {[%clk 0:00:05]}  f5 {[%clk 0:00:24]} 41. Ra7+ {[%clk 0:00:04]}  Kg8 {[%clk 0:00:22]} 42. Ra8+ {[%clk 0:00:03]}  Kg7 {[%clk 0:00:22]} 43. Kg1 {[%clk 0:00:04]}  f4 {[%clk 0:00:22]} 44. Kf2 {[%clk 0:00:04]}  Ra2+ {[%clk 0:00:23]} 45. Kf1 {[%clk 0:00:04]}  f3 {[%clk 0:00:17]} 46. gxf3 {[%clk 0:00:05]}  exf3 {[%clk 0:00:18]} 47. a7 {[%clk 0:00:06]}  Kh7 {[%clk 0:00:13]} 48. Kg1 {[%clk 0:00:06]}  Kg7 {[%clk 0:00:14]} 49. Kh1 {[%clk 0:00:06]}  Kh7 {[%clk 0:00:10]} 50. Kg1 {[%clk 0:00:06]} 1/2-1/2


[Site "https://www.chess.com"]

[Event "Titled Tuesday Blitz June 6 Late 2023"]
[White "MrAnnihilation"]
[Black "Streltsov, Alexey"]
[BlackFideId "24104434"]
[WhiteElo "2410"]
[BlackElo "2562"]
[Result "0-1"]
[Round "5"]
[TimeControl "180+2"]
[Date "2023.06.07"]
[WhiteClock "0:00:02"]
[BlackClock "0:00:36"]
[Board "84"]

1. e4 {[%clk 0:03:00]}  c5 {[%clk 0:03:00]} 2. Nf3 {[%clk 0:02:57]}  d6 {[%clk 0:03:00]} 3. Bc4 {[%clk 0:02:57]}  a6 {[%clk 0:02:59]} 4. Bb3 {[%clk 0:02:40]}  e6 {[%clk 0:02:50]} 5. O-O {[%clk 0:02:37]}  Nf6 {[%clk 0:02:50]} 6. Re1 {[%clk 0:02:37]}  Nbd7 {[%clk 0:02:45]} 7. c3 {[%clk 0:02:37]}  b5 {[%clk 0:02:41]} 8. d4 {[%clk 0:02:37]}  c4 {[%clk 0:02:41]} 9. Bc2 {[%clk 0:02:37]}  Bb7 {[%clk 0:02:42]} 10. Nbd2 {[%clk 0:02:31]}  g6 {[%clk 0:02:42]} 11. e5 {[%clk 0:02:27]}  dxe5 {[%clk 0:02:38]} 12. dxe5 {[%clk 0:02:26]}  Nd5 {[%clk 0:02:29]} 13. Ne4 {[%clk 0:02:26]}  Qc7 {[%clk 0:02:22]} 14. Bg5 {[%clk 0:02:06]}  h6 {[%clk 0:02:05]} 15. Bh4 {[%clk 0:02:06]}  Nc5 {[%clk 0:01:39]} 16. Qxd5 {[%clk 0:01:38]}  exd5 {[%clk 0:01:15]} 17. Nf6+ {[%clk 0:01:38]}  Kd8 {[%clk 0:01:16]} 18. Nxd5+ {[%clk 0:01:38]}  Kc8 {[%clk 0:01:06]} 19. Nxc7 {[%clk 0:01:36]}  Kxc7 {[%clk 0:01:07]} 20. Bf6 {[%clk 0:01:15]}  Rg8 {[%clk 0:01:07]} 21. Nd4 {[%clk 0:01:13]}  Re8 {[%clk 0:01:03]} 22. f4 {[%clk 0:00:58]}  Be7 {[%clk 0:01:03]} 23. Bxe7 {[%clk 0:00:57]}  Rxe7 {[%clk 0:01:04]} 24. a4 {[%clk 0:00:55]}  Kb6 {[%clk 0:00:59]} 25. axb5 {[%clk 0:00:54]}  axb5 {[%clk 0:01:00]} 26. Kf2 {[%clk 0:00:51]}  Rd8 {[%clk 0:00:55]} 27. g3 {[%clk 0:00:24]}  Rde8 {[%clk 0:00:55]} 28. b4 {[%clk 0:00:22]}  cxb3 {[%clk 0:00:53]} 29. Bxb3 {[%clk 0:00:22]}  Nxb3 {[%clk 0:00:50]} 30. Nxb3 {[%clk 0:00:22]}  Rc7 {[%clk 0:00:51]} 31. Re3 {[%clk 0:00:21]}  Rec8 {[%clk 0:00:52]} 32. e6 {[%clk 0:00:13]}  Bd5 {[%clk 0:00:46]} 33. Nd4 {[%clk 0:00:09]}  Rxc3 {[%clk 0:00:44]} 34. Rxc3 {[%clk 0:00:08]}  Rxc3 {[%clk 0:00:44]} 35. e7 {[%clk 0:00:08]}  Rc8 {[%clk 0:00:44]} 36. Re1 {[%clk 0:00:07]}  Re8 {[%clk 0:00:44]} 37. g4 {[%clk 0:00:07]}  Kc5 {[%clk 0:00:44]} 38. Nc2 {[%clk 0:00:03]}  Kd6 {[%clk 0:00:43]} 39. f5 {[%clk 0:00:03]}  Rxe7 {[%clk 0:00:42]} 40. g5 {[%clk 0:00:03]}  Rxe1 {[%clk 0:00:40]} 41. Nxe1 {[%clk 0:00:01]}  hxg5 {[%clk 0:00:40]} 42. fxg6 {[%clk 0:00:02]}  fxg6 {[%clk 0:00:36]} 0-1


[Site "https://www.chess.com"]

[Event "Titled Tuesday Blitz June 6 Late 2023"]
[White "WindWhistler11"]
[Black "Gerbelli Neto, Eduardo"]
[BlackFideId "2103281"]
[WhiteElo "2538"]
[BlackElo "2178"]
[Result "1-0"]
[Round "5"]
[TimeControl "180+2"]
[Date "2023.06.07"]
[WhiteClock "0:00:26"]
[BlackClock "0:00:11"]
[Board "90"]

1. Nf3 {[%clk 0:02:56]}  Nf6 {[%clk 0:02:59]} 2. g3 {[%clk 0:02:56]}  g6 {[%clk 0:02:58]} 3. Bg2 {[%clk 0:02:56]}  Bg7 {[%clk 0:02:59]} 4. O-O {[%clk 0:02:56]}  d5 {[%clk 0:03:00]} 5. c4 {[%clk 0:02:55]}  c6 {[%clk 0:02:55]} 6. Qc2 {[%clk 0:02:47]}  Bf5 {[%clk 0:02:49]} 7. d3 {[%clk 0:02:47]}  O-O {[%clk 0:02:49]} 8. Nbd2 {[%clk 0:02:43]}  dxc4 {[%clk 0:02:33]} 9. Nxc4 {[%clk 0:02:41]}  Nbd7 {[%clk 0:02:30]} 10. e4 {[%clk 0:02:36]}  Be6 {[%clk 0:02:27]} 11. Ne3 {[%clk 0:02:09]}  h6 {[%clk 0:02:23]} 12. Nd4 {[%clk 0:02:05]}  Ne5 {[%clk 0:02:08]} 13. Nxe6 {[%clk 0:02:03]}  fxe6 {[%clk 0:02:09]} 14. Rd1 {[%clk 0:01:55]}  Qd4 {[%clk 0:01:20]} 15. Qb3 {[%clk 0:01:35]}  Rf7 {[%clk 0:01:16]} 16. Qxe6 {[%clk 0:01:30]}  Rd8 {[%clk 0:00:38]} 17. Qb3 {[%clk 0:01:15]}  Nfg4 {[%clk 0:00:32]} 18. Rf1 {[%clk 0:00:51]}  b5 {[%clk 0:00:25]} 19. h3 {[%clk 0:00:46]}  Nxe3 {[%clk 0:00:22]} 20. Bxe3 {[%clk 0:00:45]}  Qxd3 {[%clk 0:00:23]} 21. Rac1 {[%clk 0:00:32]}  Qxb3 {[%clk 0:00:20]} 22. axb3 {[%clk 0:00:33]}  Nd3 {[%clk 0:00:21]} 23. Rxc6 {[%clk 0:00:33]}  Nxb2 {[%clk 0:00:14]} 24. Rxg6 {[%clk 0:00:33]}  a5 {[%clk 0:00:14]} 25. Rb6 {[%clk 0:00:32]}  b4 {[%clk 0:00:13]} 26. Ra6 {[%clk 0:00:29]}  Rd3 {[%clk 0:00:10]} 27. e5 {[%clk 0:00:27]}  Kh7 {[%clk 0:00:11]} 28. Be4+ {[%clk 0:00:26]} 1-0


[Site "https://www.chess.com"]

[Event "Titled Tuesday Blitz June 6 Late 2023"]
[White "Mieles Palau, Daniel"]
[Black "Weisz, Bryan"]
[WhiteFideId "3600467"]
[BlackFideId "30934133"]
[WhiteElo "2344"]
[BlackElo "2321"]
[Result "0-1"]
[Round "5"]
[TimeControl "180+2"]
[Date "2023.06.07"]
[WhiteClock "0:00:01"]
[BlackClock "0:01:13"]
[Board "91"]

1. b3 {[%clk 0:01:28]}  e5 {[%clk 0:02:55]} 2. Bb2 {[%clk 0:01:28]}  Nc6 {[%clk 0:02:54]} 3. e3 {[%clk 0:01:28]}  Nf6 {[%clk 0:02:55]} 4. Bb5 {[%clk 0:01:21]}  Qe7 {[%clk 0:02:55]} 5. Ne2 {[%clk 0:01:03]}  g6 {[%clk 0:02:48]} 6. d4 {[%clk 0:00:56]}  exd4 {[%clk 0:02:41]} 7. Nxd4 {[%clk 0:00:56]}  Nxd4 {[%clk 0:02:30]} 8. Bxd4 {[%clk 0:00:49]}  Bg7 {[%clk 0:02:28]} 9. O-O {[%clk 0:00:48]}  O-O {[%clk 0:02:27]} 10. Nd2 {[%clk 0:00:46]}  d5 {[%clk 0:02:20]} 11. h3 {[%clk 0:00:43]}  c5 {[%clk 0:02:05]} 12. Bb2 {[%clk 0:00:43]}  c4 {[%clk 0:02:02]} 13. bxc4 {[%clk 0:00:32]}  a6 {[%clk 0:02:02]} 14. Ba4 {[%clk 0:00:32]}  dxc4 {[%clk 0:01:56]} 15. Nxc4 {[%clk 0:00:32]}  b5 {[%clk 0:01:52]} 16. Nb6 {[%clk 0:00:25]}  bxa4 {[%clk 0:01:50]} 17. Nxa8 {[%clk 0:00:24]}  Qb7 {[%clk 0:01:32]} 18. Ba3 {[%clk 0:00:22]}  Re8 {[%clk 0:01:33]} 19. Qf3 {[%clk 0:00:07]}  Ne4 {[%clk 0:01:30]} 20. Rad1 {[%clk 0:00:05]}  Qxa8 {[%clk 0:01:27]} 21. Rd3 {[%clk 0:00:05]}  Bb7 {[%clk 0:01:25]} 22. Qf4 {[%clk 0:00:01]}  Be5 {[%clk 0:01:21]} 23. Qg4 {[%clk 0:00:01]}  Nf6 {[%clk 0:01:17]} 24. Qc4 {[%clk 0:00:01]}  Bxg2 {[%clk 0:01:15]} 25. Rb1 {[%clk 0:00:01]}  Bxh3 {[%clk 0:01:13]} 0-1


[Site "https://www.chess.com"]